fUSD/lending_fUSD_20240629
["ID","MTS","AMOUNT","RATE_DAILY","PERIOD"]
[330617859,1719627047146,-153.032146,0.000209,2]
[330617860,1719627047155,-151.0,0.000209,2]
[330617861,1719627047165,-366.996923,0.000209,2]
[330617862,1719627047175,-366.996923,0.000209,2]
[330617863,1719627047184,-151.0,0.000209,2]
[330617864,1719627047194,-151.0,0.000209,2]
[330617865,1719627047204,-243.934504,0.000209,2]
[330617866,1719627047216,-292.916984,0.000209,2]
[330617867,1719627047227,-245.713047,0.000209,2]
[330617868,1719627047236,-245.713047,0.000209,2]
[330617869,1719627047246,-261.630004,0.000209,2]
[330617870,1719627047256,-269.301773,0.000209,2]
[330617871,1719627047266,-261.630004,0.000209,2]
[330617872,1719627047275,-269.301773,0.000209,2]
[330617873,1719627047285,-214.352493,0.000209,2]
[330617874,1719627047298,-151.0,0.000209,2]
[330617875,1719627047309,-96684.4579576,0.000209,2]
[330617876,1719627047318,-151.0,0.000209,2]
[330617877,1719627047328,-225.801559,0.000209,2]
[330617878,1719627047337,-351.764822,0.000209,2]
[330617879,1719627047346,-351.764822,0.000209,2]
[330617880,1719627047355,-225.801559,0.000209,2]
[330617881,1719627047364,-151.0,0.000209,2]
[330617882,1719627047374,-151.0,0.000209,2]
[330617883,1719627047383,-151.978261,0.000209,2]
[330617884,1719627047392,-151.0,0.000209,2]
[330617885,1719627047401,-151.0,0.000209,2]
[330617886,1719627047411,-234.035268,0.000209,2]
[330617887,1719627047420,-234.035268,0.000209,2]
[330617888,1719627047430,-151.0,0.000209,2]
[330617889,1719627047439,-151.0,0.000209,2]
[330617890,1719627047449,-228.475536,0.000209,2]
[330617891,1719627047458,-154.660346,0.000209,2]
[330617892,1719627047467,-151.511614,0.000209,2]
[330617893,1719627047477,-228.475536,0.000209,2]
[330617894,1719627047487,-151.0,0.000209,2]
[330617895,1719627047496,-152.443336,0.000209,2]
[330617896,1719627047506,-151.0,0.000209,2]
[330617897,1719627047515,-151.0,0.000209,2]
[330617898,1719627047525,-151.0,0.000209,2]
[330617899,1719627047535,-151.0,0.000209,2]
[330617900,1719627047545,-179.38958171,0.000209,2]
[330617901,1719627047555,-150.0,0.00020907,2]
[330617902,1719627047564,-150.0,0.00020911,2]
[330617903,1719627047573,-150.0,0.00020922,2]
[330617904,1719627047583,-832.92,0.00020932,2]
[330617905,1719627047593,-150.0,0.00020959,2]
[330617906,1719627047602,-10018.21501175,0.00021,7]
[330617907,1719627047612,-225.12122571,0.00021,2]
[330617908,1719627047622,-4008.77507645,0.00021,2]
[330617909,1719627047632,-305.16504019,0.00021,2]
[330617910,1719627047641,-1250.0,0.00021,2]
[330617911,1719627047651,-202.955894,0.00021,2]
[330617912,1719627047661,-150.0,0.00021009,2]
[330617913,1719627047670,-165.67207765,0.00021023,2]
[330617914,1719627047680,-150.0,0.00021037,2]
[330617915,1719627047689,-41571.22215921,0.0002107,2]
[330617916,1719627047699,-369.045112,0.00021096,2]
[330617917,1719627047708,-150.0,0.00021102,2]
[330617918,1719627047718,-150.0,0.00021161,2]
[330617919,1719627047727,-11318.742,0.00021199,2]
[330617920,1719627047736,-1184.251,0.00021199,2]
[330617921,1719627047746,-5805.0,0.00021199,2]
[330617922,1719627047756,-291.0,0.00021199,2]
[330617923,1719627047765,-5172.0,0.00021199,2]
[330617924,1719627047774,-1662.0,0.00021199,2]
[330617925,1719627047783,-150.0,0.00021215,2]
[330617926,1719627047793,-285.660136,0.00021223,2]
[330617927,1719627047801,-190.428704,0.00021223,2]
[330617928,1719627047810,-165.502603,0.00021223,2]
[330617929,1719627047819,-150.0,0.00021249,2]
[330617930,1719627047829,-1175.86437842,0.0002125,4]
[330617931,1719627047839,-31883.36948108,0.00021255,2]
[330617932,1719627047848,-150.0,0.00021345,2]
[330617933,1719627047857,-150.0,0.0002137,2]
[330617934,1719627047866,-150.0,0.00021375,2]
[330617935,1719627047876,-150.0,0.00021391,2]
[330617936,1719627047885,-150.0,0.00021402,2]
[330617937,1719627047894,-150.0,0.00021418,2]
[330617938,1719627047903,-150.0,0.0002142,2]
[330617939,1719627047915,-152.0,0.00021439,3]
[330617940,1719627047923,-1500.0,0.00021455,2]
[330617941,1719627047933,-1096.70640048,0.00021479,2]
[330617942,1719627047942,-150.0,0.00021516,2]
[330617943,1719627047956,-150.0,0.00021586,2]
[330617944,1719627047966,-1070.02119034,0.00021586,2]
[330617945,1719627047975,-1121.18310731,0.00021586,2]
[330617946,1719627047985,-1426.62000889,0.00021586,2]
[330617947,1719627047994,-150.0,0.00021614,2]
[330617948,1719627048004,-402.59,0.00021644,2]
[330617949,1719627048014,-160.5,0.00021644,2]
[330617950,1719627048025,-150.25,0.00021644,2]
[330617951,1719627048034,-150.47,0.00021644,2]
[330617952,1719627048044,-1500.0,0.0002166,2]
[330617953,1719627048053,-150.0,0.00021669,2]
[330617954,1719627048063,-150.0,0.00021674,2]
[330617955,1719627048072,-150.0,0.000217,2]
[330617956,1719627048082,-500.0,0.00021721,2]
[330617957,1719627048091,-1110.0,0.00021731,2]
[330617958,1719627048100,-2100.0,0.00021749,2]
[330617959,1719627048111,-300.232,0.00021749,2]
[330617960,1719627048120,-150.0,0.00021749,2]
[330617961,1719627048130,-150.0,0.00021753,2]
[330617962,1719627048140,-150.0,0.00021753,2]
[330617963,1719627048150,-150.0,0.00021753,2]
[330617964,1719627048159,-150.0,0.00021753,2]
[330617965,1719627048170,-1500.0,0.00021781,2]
[330617966,1719627048179,-150.0,0.00021794,2]
[330617967,1719627048188,-6793.5460657,0.00021801,2]
[330617968,1719627048197,-1500.0,0.00021808,2]
[330617969,1719627048207,-190.55324353,0.00021812,2]
[330617970,1719627048221,-1628.39165564,0.00021815,2]
[330617971,1719627048231,-7777.3305223,0.00021815,2]
[330617972,1719627048240,-1162.05069561,0.00021816,2]
[330617973,1719627048251,-3462.49345207,0.00021816,2]
[330617974,1719627048261,-150.0,0.00021826,2]
[330617975,1719627048270,-150.0,0.0002183,2]
[330617976,1719627048280,-1500.0,0.00021841,2]
[330617977,1719627048290,-150.0,0.00021849,2]
[330617978,1719627048300,-150.0,0.00021855,2]
[330617979,1719627048309,-1516.6293214,0.0002186,2]
[330617980,1719627048319,-152.0,0.00021866,4]
[330617981,1719627048328,-151.43128215,0.00021874,2]
[330617982,1719627048337,-153.62738846,0.00021879,2]
[330617983,1719627048346,-566936.24997797,0.0002188,2]
[330617984,1719627048355,-151.993889,0.0002188,2]
[330617985,1719627048365,-151.0,0.0002188,2]
[330617986,1719627048375,-152.684616,0.0002188,2]
[330617987,1719627048385,-151.0,0.0002188,2]
[330617988,1719627048394,-151.0,0.0002188,2]
[330617989,1719627048404,-151.0,0.0002188,2]
[330617990,1719627048415,-151.0,0.0002188,2]
[330617991,1719627048424,-213.692901,0.0002188,2]
[330617992,1719627048436,-151.0,0.0002188,2]
[330617993,1719627048456,-151.0,0.0002188,2]
[330617994,1719627048465,-151.0,0.0002188,2]
[330617995,1719627048476,-151.0,0.0002188,2]
[330617996,1719627048486,-154.44817,0.0002188,2]
[330617997,1719627048496,-151.0,0.0002188,2]
[330617998,1719627048506,-151.0,0.0002188,2]
[330617999,1719627048516,-152.549048,0.0002188,2]
[330618000,1719627048525,-285.536214,0.0002188,2]
[330618001,1719627048535,-151.0,0.0002188,2]
[330618002,1719627048544,-156.830416,0.0002188,2]
[330618003,1719627048554,-151.0,0.0002188,2]
[330618004,1719627048564,-151.0,0.0002188,2]
[330618005,1719627048573,-151.0,0.0002188,2]
[330618006,1719627048688,-151.0,0.0002188,2]
[330618007,1719627048697,-151.0,0.0002188,2]
[330618008,1719627048707,-264.98498,0.0002188,2]
[330618009,1719627048718,-160.212035,0.0002188,2]
[330618010,1719627048729,-152.852483,0.0002188,2]
[330618011,1719627048738,-298.194644,0.0002188,2]
[330618012,1719627048749,-151.0,0.0002188,2]
[330618013,1719627048758,-153.621542,0.0002188,2]
[330618014,1719627048769,-151.0,0.0002188,2]
[330618015,1719627048778,-718.493884,0.0002188,2]
[330618016,1719627048788,-262.264159,0.0002188,2]
[330618017,1719627048797,-718.493884,0.0002188,2]
[330618018,1719627048807,-151.0,0.0002188,2]
[330618019,1719627048816,-223.502016,0.0002188,2]
[330618020,1719627048826,-223.502016,0.0002188,2]
[330618021,1719627048835,-487.171688,0.0002188,2]
[330618022,1719627048844,-487.171688,0.0002188,2]
[330618023,1719627048854,-151.0,0.0002188,2]
[330618024,1719627048863,-151.0,0.0002188,2]
[330618025,1719627048872,-151.0,0.0002188,2]
[330618026,1719627048881,-366.996923,0.0002188,2]
[330618027,1719627048891,-366.996923,0.0002188,2]
[330618028,1719627048900,-151.0,0.0002188,2]
[330618029,1719627048909,-151.0,0.0002188,2]
[330618030,1719627048921,-245.713047,0.0002188,2]
[330618031,1719627048930,-245.713047,0.0002188,2]
[330618032,1719627048940,-261.630004,0.0002188,2]
[330618033,1719627048949,-269.301773,0.0002188,2]
[330618034,1719627048958,-261.630004,0.0002188,2]
[330618035,1719627048969,-269.301773,0.0002188,2]
[330618036,1719627048978,-154.434696,0.0002188,2]
[330618037,1719627048987,-151.0,0.0002188,2]
[330618038,1719627048996,-225.801559,0.0002188,2]
[330618039,1719627049006,-351.764822,0.0002188,2]
[330618040,1719627049016,-351.764822,0.0002188,2]
[330618041,1719627049025,-225.801559,0.0002188,2]
[330618042,1719627049034,-151.0,0.0002188,2]
[330618043,1719627049044,-151.0,0.0002188,2]
[330618044,1719627049053,-153.785714,0.0002188,2]
[330618045,1719627049063,-151.0,0.0002188,2]
[330618046,1719627049072,-234.035268,0.0002188,2]
[330618047,1719627049082,-234.035268,0.0002188,2]
[330618048,1719627049091,-151.0,0.0002188,2]
[330618049,1719627049100,-154.134126,0.0002188,2]
[330618050,1719627049111,-228.475536,0.0002188,2]
[330618051,1719627049120,-228.475536,0.0002188,2]
[330618052,1719627049130,-151.0,0.0002188,2]
[330618053,1719627049139,-151.0,0.0002188,2]
[330618054,1719627049149,-151.0,0.0002188,2]
[330618055,1719627049158,-151.0,0.0002188,2]
[330618056,1719627049168,-151.00000097,0.0002188,2]
[330618057,1719627049178,-365.58151451,0.00021882,2]
[330618058,1719627049187,-500.0,0.00021894,2]
[330618059,1719627049197,-200.0,0.00021894,2]
[330618060,1719627049207,-1000.0,0.000219,2]
[330618061,1719627049221,-225.0,0.000219,2]
[330618062,1719627049231,-356.0,0.000219,2]
[330618063,1719627049241,-1274.88625925,0.00021904,2]
[330618064,1719627049251,-867.31049744,0.00021906,2]
[330618065,1719627049260,-188.11303283,0.00021914,2]
[330618066,1719627049270,-293.65140576,0.00021917,3]
[330618067,1719627049280,-500.0,0.00021917,3]
[330618068,1719627049290,-500.0,0.00021917,3]
[330618069,1719627049302,-500.0,0.00021917,3]
[330618070,1719627049311,-268.16107545,0.00021917,3]
[330618071,1719627049322,-500.0,0.00021917,3]
[330618072,1719627049332,-500.0,0.00021917,3]
[330618073,1719627049343,-500.0,0.00021917,3]
[330618074,1719627049352,-500.0,0.00021917,3]
[330618075,1719627049361,-242.42868748,0.00021917,3]
[330618076,1719627049371,-500.0,0.00021917,3]
[330618077,1719627049380,-500.0,0.00021917,3]
[330618078,1719627049390,-500.0,0.00021917,3]
[330618079,1719627049399,-955.72,0.00021917,3]
[330618080,1719627049408,-500.0,0.00021917,3]
[330618081,1719627049419,-982.53,0.00021917,3]
[330618082,1719627049429,-500.03455098,0.00021917,3]
[330618083,1719627049438,-797.9,0.00021917,3]
[330618084,1719627049447,-485.09694421,0.00021917,3]
[330618085,1719627049456,-407.57625413,0.00021917,3]
[330618086,1719627049466,-500.0,0.00021917,3]
[330618087,1719627049476,-500.0,0.00021917,3]
[330618088,1719627049486,-1089.38,0.00021917,3]
[330618089,1719627049495,-1969.82,0.00021917,3]
[330618090,1719627049504,-500.0,0.00021917,3]
[330618091,1719627049513,-500.0,0.00021917,3]
[330618092,1719627049523,-531.64,0.00021917,3]
[330618093,1719627049533,-2535.04,0.00021917,3]
[330618094,1719627049542,-809.6,0.00021917,3]
[330618095,1719627049551,-500.0,0.00021917,3]
[330618096,1719627049560,-500.0,0.00021917,3]
[330618097,1719627049569,-500.0,0.00021917,3]
[330618098,1719627049580,-354.33144415,0.00021917,3]
[330618099,1719627049590,-500.0,0.00021917,3]
[330618100,1719627049600,-2418.52,0.00021917,3]
[330618101,1719627049609,-505.27,0.00021917,3]
[330618102,1719627049618,-151.0,0.00021917,2]
[330618103,1719627049628,-151.0,0.00021917,2]
[330618104,1719627049638,-611.53,0.00021917,3]
[330618105,1719627049647,-500.0,0.00021917,3]
[330618106,1719627049656,-500.0,0.00021917,3]
[330618107,1719627049666,-500.0,0.00021917,3]
[330618108,1719627049675,-612.13490445,0.00021917,3]
[330618109,1719627049685,-1205.95,0.00021917,3]
[330618110,1719627049695,-1205.05,0.00021917,3]
[330618111,1719627049704,-500.0,0.00021917,3]
[330618112,1719627049713,-500.0,0.00021917,3]
[330618113,1719627049723,-500.0,0.00021917,3]
[330618114,1719627049733,-500.0,0.00021917,3]
[330618115,1719627049742,-1014.26,0.00021917,3]
[330618116,1719627049752,-500.0,0.00021917,3]
[330618117,1719627049762,-1619.92,0.00021917,3]
[330618118,1719627049772,-500.0,0.00021917,3]
[330618119,1719627049781,-622.99,0.00021917,3]
[330618120,1719627049790,-695.3,0.00021917,3]
[330618121,1719627049800,-3377.99,0.00021917,3]
[330618122,1719627049809,-933.05,0.00021917,3]
[330618123,1719627049818,-500.0,0.00021917,3]
[330618124,1719627049827,-500.0,0.00021917,3]
[330618125,1719627049836,-1115.82,0.00021917,3]
[330618126,1719627049845,-500.0,0.00021917,3]
[330618127,1719627049855,-199.60204721,0.00021917,3]
[330618128,1719627049863,-500.0,0.00021917,3]
[330618129,1719627049872,-942.12,0.00021917,3]
[330618130,1719627049882,-500.0,0.00021917,3]
[330618131,1719627049891,-500.0,0.00021917,3]
[330618132,1719627049900,-500.0,0.00021917,3]
[330618133,1719627049909,-382.77023709,0.00021917,3]
[330618134,1719627049920,-1260.93,0.00021917,3]
[330618135,1719627049929,-500.0,0.00021917,3]
[330618136,1719627049938,-640.89,0.00021917,3]
[330618137,1719627049947,-500.0,0.00021917,3]
[330618138,1719627049956,-4198.47,0.00021917,3]
[330618139,1719627049965,-796.43,0.00021917,3]
[330618140,1719627049974,-890.37,0.00021917,3]
[330618141,1719627049983,-500.0,0.00021917,3]
[330618142,1719627049992,-500.0,0.00021917,3]
[330618143,1719627050001,-500.0,0.00021917,3]
[330618144,1719627050011,-500.0,0.00021917,3]
[330618145,1719627050021,-500.0,0.00021917,3]
[330618146,1719627050031,-500.0,0.00021917,3]
[330618147,1719627050040,-1248.67,0.00021917,3]
[330618148,1719627050050,-866.8,0.00021917,3]
[330618149,1719627050059,-641.43,0.00021917,3]
[330618150,1719627050069,-500.0,0.00021917,3]
[330618151,1719627050078,-220.75683778,0.00021917,3]
[330618152,1719627050087,-500.0,0.00021917,3]
[330618153,1719627050096,-899.51,0.00021917,3]
[330618154,1719627050105,-500.0,0.00021917,3]
[330618155,1719627050115,-776.59,0.00021917,3]
[330618156,1719627050124,-500.0,0.00021917,3]
[330618157,1719627050133,-647.66,0.00021917,3]
[330618158,1719627050143,-500.0,0.00021917,3]
[330618159,1719627050152,-733.24,0.00021917,3]
[330618160,1719627050163,-706.77,0.00021917,3]
[330618161,1719627050172,-500.0,0.00021917,3]
[330618162,1719627050182,-1427.71,0.00021917,3]
[330618163,1719627050191,-744.36,0.00021917,3]
[330618164,1719627050200,-500.0,0.00021917,3]
[330618165,1719627050214,-500.0,0.00021917,3]
[330618166,1719627050224,-545.7,0.00021917,3]
[330618167,1719627050234,-500.0,0.00021917,3]
[330618168,1719627050244,-1181.16,0.00021917,3]
[330618169,1719627050255,-500.0,0.00021917,3]
[330618170,1719627050264,-500.0,0.00021917,3]
[330618171,1719627050274,-500.0,0.00021917,3]
[330618172,1719627050283,-500.0,0.00021917,3]
[330618173,1719627050295,-679.9,0.00021917,3]
[330618174,1719627050305,-515.49690208,0.00021917,3]
[330618175,1719627050315,-550.46,0.00021917,3]
[330618176,1719627050324,-500.0,0.00021917,3]
[330618177,1719627050334,-500.0,0.00021917,3]
[330618178,1719627050343,-864.42,0.00021917,3]
[330618179,1719627050352,-500.0,0.00021917,3]
[330618180,1719627050362,-500.0,0.00021917,3]
[330618181,1719627050371,-906.46,0.00021917,3]
[330618182,1719627050380,-500.0,0.00021917,3]
[330618183,1719627050390,-214.82,0.00021917,7]
[330618184,1719627050399,-642.74,0.00021917,3]
[330618185,1719627050409,-798.43,0.00021917,3]
[330618186,1719627050420,-500.0,0.00021917,3]
[330618187,1719627050430,-500.0,0.00021917,3]
[330618188,1719627050439,-500.0,0.00021917,3]
[330618189,1719627050448,-1539.59,0.00021917,3]
[330618190,1719627050457,-590.74,0.00021917,3]
[330618191,1719627050466,-500.0,0.00021917,3]
[330618192,1719627050476,-500.0,0.00021917,3]
[330618193,1719627050486,-500.0,0.00021917,3]
[330618194,1719627050495,-500.0,0.00021917,3]
[330618195,1719627050505,-500.0,0.00021917,3]
[330618196,1719627050515,-500.0,0.00021917,3]
[330618197,1719627050524,-500.0,0.00021917,3]
[330618198,1719627050534,-500.0,0.00021917,3]
[330618199,1719627050543,-500.0,0.00021917,3]
[330618200,1719627050552,-653.81,0.00021917,3]
[330618201,1719627050561,-500.0,0.00021917,3]
[330618202,1719627050571,-500.0,0.00021917,3]
[330618203,1719627050580,-885.72,0.00021917,3]
[330618204,1719627050589,-500.0,0.00021917,3]
[330618205,1719627050599,-500.0,0.00021917,3]
[330618206,1719627050608,-1163.64,0.00021917,3]
[330618207,1719627050617,-500.0,0.00021917,3]
[330618208,1719627050626,-784.29,0.00021917,3]
[330618209,1719627050635,-697.04,0.00021917,3]
[330618210,1719627050644,-6450.29,0.00021917,3]
[330618211,1719627050653,-500.0,0.00021917,3]
[330618212,1719627050663,-2292.27,0.00021917,3]
[330618213,1719627050672,-567.28,0.00021917,3]
[330618214,1719627050680,-500.0,0.00021917,3]
[330618215,1719627050690,-921.5,0.00021917,3]
[330618216,1719627050699,-500.0,0.00021917,3]
[330618217,1719627050708,-500.0,0.00021917,3]
[330618218,1719627050717,-786.47,0.00021917,3]
[330618219,1719627050726,-500.0,0.00021917,3]
[330618220,1719627050735,-500.0,0.00021917,3]
[330618221,1719627050744,-500.0,0.00021917,3]
[330618222,1719627050753,-500.30818027,0.00021917,3]
[330618223,1719627050762,-644.11,0.00021917,3]
[330618224,1719627050772,-1099.24,0.00021917,3]
[330618225,1719627050781,-500.0,0.00021917,3]
[330618226,1719627050790,-500.0,0.00021917,3]
[330618227,1719627050799,-500.0,0.00021917,3]
[330618228,1719627050808,-1155.17,0.00021917,3]
[330618229,1719627050818,-500.0,0.00021917,3]
[330618230,1719627050827,-500.0,0.00021917,3]
[330618231,1719627050835,-500.0,0.00021917,3]
[330618232,1719627050844,-500.0,0.00021917,3]
[330618233,1719627050854,-973.14,0.00021917,3]
[330618234,1719627050863,-1369.83,0.00021917,3]
[330618235,1719627050872,-1743.64,0.00021917,3]
[330618236,1719627050881,-500.0,0.00021917,3]
[330618237,1719627050890,-500.0,0.00021917,3]
[330618238,1719627050899,-500.0,0.00021917,3]
[330618239,1719627050908,-500.0,0.00021917,3]
[330618240,1719627050920,-500.0,0.00021917,3]
[330618241,1719627050929,-500.0,0.00021917,3]
[330618242,1719627050939,-660.51,0.00021917,3]
[330618243,1719627050948,-1827.03,0.00021917,3]
[330618244,1719627050958,-914.3,0.00021917,3]
[330618245,1719627050967,-500.0,0.00021917,3]
[330618246,1719627050977,-640.82,0.00021917,3]
[330618247,1719627050986,-1480.34,0.00021917,3]
[330618248,1719627050996,-500.0,0.00021917,3]
[330618249,1719627051005,-508.61,0.00021917,3]
[330618250,1719627051014,-838.94,0.00021917,3]
[330618251,1719627051023,-1130.76,0.00021917,3]
[330618252,1719627051032,-500.0,0.00021917,3]
[330618253,1719627051042,-713.03,0.00021917,3]
[330618254,1719627051052,-3005.37,0.00021917,3]
[330618255,1719627051060,-152.890617,0.00021917,2]
[330618256,1719627051070,-500.0,0.00021917,3]
[330618257,1719627051080,-500.0,0.00021917,3]
[330618258,1719627051089,-301.06338744,0.00021917,3]
[330618259,1719627051099,-764.27,0.00021917,3]
[330618260,1719627051108,-1996.89,0.00021917,3]
[330618261,1719627051118,-500.0,0.00021917,3]
[330618262,1719627051127,-500.0,0.00021917,3]
[330618263,1719627051136,-500.0,0.00021917,3]
[330618264,1719627051146,-500.0,0.00021917,3]
[330618265,1719627051155,-623.97216482,0.00021917,3]
[330618266,1719627051165,-938.43,0.00021917,3]
[330618267,1719627051174,-774.39,0.00021917,3]
[330618268,1719627051183,-500.0,0.00021917,3]
[330618269,1719627051196,-500.0,0.00021917,3]
[330618270,1719627051206,-574.0,0.00021917,3]
[330618271,1719627051220,-1594.88,0.00021917,3]
[330618272,1719627051230,-327.0,0.00021917,3]
[330618273,1719627051239,-767.93,0.00021917,3]
[330618274,1719627051248,-500.0,0.00021917,3]
[330618275,1719627051258,-553.61,0.00021917,3]
[330618276,1719627051267,-570.67,0.00021917,3]
[330618277,1719627051276,-591.99,0.00021917,3]
[330618278,1719627051285,-151.0,0.00021917,2]
[330618279,1719627051297,-500.0,0.00021917,3]
[330618280,1719627051306,-500.0,0.00021917,3]
[330618281,1719627051315,-500.0,0.00021917,3]
[330618282,1719627051325,-500.0,0.00021917,3]
[330618283,1719627051334,-500.0,0.00021917,3]
[330618284,1719627051345,-2024.22,0.00021917,3]
[330618285,1719627051355,-794.11,0.00021917,3]
[330618286,1719627051365,-689.03,0.00021917,3]
[330618287,1719627051374,-498.43635915,0.00021917,2]
[330618288,1719627051383,-1382.94,0.00021917,3]
[330618289,1719627051392,-731.9,0.00021917,3]
[330618290,1719627051401,-500.0,0.00021917,3]
[330618291,1719627051410,-814.78,0.00021917,3]
[330618292,1719627051420,-541.81,0.00021917,3]
[330618293,1719627051429,-500.0,0.00021917,3]
[330618294,1719627051438,-774.81,0.00021917,3]
[330618295,1719627051447,-500.0,0.00021917,3]
[330618296,1719627051456,-786.16,0.00021917,3]
[330618297,1719627051465,-2907.73,0.00021917,3]
[330618298,1719627051474,-500.0,0.00021917,3]
[330618299,1719627051485,-502.46830133,0.00021917,3]
[330618300,1719627051494,-500.0,0.00021917,3]
[330618301,1719627051504,-500.0,0.00021917,3]
[330618302,1719627051513,-938.12,0.00021917,3]
[330618303,1719627051523,-500.0,0.00021917,3]
[330618304,1719627051533,-500.0,0.00021917,3]
[330618305,1719627051541,-521.74,0.00021917,3]
[330618306,1719627051551,-500.0,0.00021917,3]
[330618307,1719627051560,-907.85,0.00021917,3]
[330618308,1719627051569,-740.68,0.00021917,3]
[330618309,1719627051578,-500.0,0.00021917,3]
[330618310,1719627051588,-892.42,0.00021917,3]
[330618311,1719627051597,-538.5,0.00021917,3]
[330618312,1719627051606,-500.0,0.00021917,3]
[330618313,1719627051615,-500.0,0.00021917,3]
[330618314,1719627051624,-538.11,0.00021917,3]
[330618315,1719627051633,-500.0,0.00021917,3]
[330618316,1719627051642,-500.0,0.00021917,3]
[330618317,1719627051652,-500.0,0.00021917,3]
[330618318,1719627051664,-151.0,0.00021917,2]
[330618319,1719627051673,-151.0,0.00021917,2]
[330618320,1719627051683,-1105.99,0.00021917,3]
[330618321,1719627051692,-500.0,0.00021917,3]
[330618322,1719627051702,-500.0,0.00021917,3]
[330618323,1719627051711,-500.0,0.00021917,3]
[330618324,1719627051720,-500.0,0.00021917,3]
[330618325,1719627051730,-761.04,0.00021917,3]
[330618326,1719627051740,-501.08848028,0.00021917,3]
[330618327,1719627051750,-500.0,0.00021917,3]
[330618328,1719627051759,-500.0,0.00021917,3]
[330618329,1719627051768,-500.0,0.00021917,3]
[330618330,1719627051778,-527.27,0.00021917,3]
[330618331,1719627051787,-500.0,0.00021917,3]
[330618332,1719627051797,-996.39,0.00021917,3]
[330618333,1719627051806,-510.35,0.00021917,3]
[330618334,1719627051816,-886.08,0.00021917,3]
[330618335,1719627051825,-500.0,0.00021917,3]
[330618336,1719627051834,-500.0,0.00021917,3]
[330618337,1719627051844,-500.0,0.00021917,3]
[330618338,1719627051853,-500.0,0.00021917,3]
[330618339,1719627051862,-500.0,0.00021917,3]
[330618340,1719627051871,-636.81798444,0.00021917,3]
[330618341,1719627051880,-592.43,0.00021917,3]
[330618342,1719627051890,-1253.98,0.00021917,3]
[330618343,1719627051899,-500.0,0.00021917,3]
[330618344,1719627051908,-500.0,0.00021917,3]
[330618345,1719627051918,-680.78,0.00021917,3]
[330618346,1719627051928,-1175.13,0.00021917,3]
[330618347,1719627051938,-599.75,0.00021917,3]
[330618348,1719627051947,-500.0,0.00021917,3]
[330618349,1719627051956,-500.0,0.00021917,3]
[330618350,1719627051966,-452.02494893,0.00021917,3]
[330618351,1719627051975,-1213.75,0.00021917,3]
[330618352,1719627051984,-1373.91,0.00021917,3]
[330618353,1719627051994,-500.0,0.00021917,3]
[330618354,1719627052003,-561.15,0.00021917,3]
[330618355,1719627052012,-500.0,0.00021917,3]
[330618356,1719627052021,-500.0,0.00021917,3]
[330618357,1719627052031,-501.85,0.00021917,3]
[330618358,1719627052041,-328.69900181,0.00021917,3]